fUST/lending_fUST_20250402
["ID","MTS","AMOUNT","RATE_DAILY","PERIOD"]
[357027335,1743589832458,-805.97,0.00017225,2]
[357027337,1743589832468,-500.0,0.00017225,2]
[357027339,1743589832477,-500.0,0.00017225,2]
[357027341,1743589832486,-142.55120414,0.00017225,2]
[357027344,1743589832498,-357.44879586,0.00017225,2]
[357027346,1743589832507,-500.0,0.00017225,2]
[357027348,1743589832516,-500.0,0.00017225,2]
[357027350,1743589832525,-500.0,0.00017225,2]
[357027352,1743589832533,-500.0,0.00017225,2]
[357027354,1743589832543,-500.0,0.00017225,2]
[357027356,1743589832552,-500.0,0.00017225,2]
[357027358,1743589832561,-500.0,0.00017225,2]
[357027360,1743589832570,-500.0,0.00017225,2]
[357027362,1743589832578,-500.0,0.00017225,2]
[357027364,1743589832588,-616.69,0.00017225,2]
[357027366,1743589832597,-500.0,0.00017225,2]
[357027368,1743589832606,-500.0,0.00017225,2]
[357027370,1743589832616,-500.0,0.00017225,2]
[357027372,1743589832626,-500.0,0.00017226,2]
[357027374,1743589832635,-500.0,0.00017226,2]
[357027375,1743589832643,-500.0,0.00017226,2]
[357027376,1743589832652,-30.70135472,0.00017226,2]
[357027377,1743589832663,-469.29864528,0.00017226,2]
[357027378,1743589832673,-502.56021005,0.00017226,2]
[357027379,1743589832682,-501.40108433,0.00017226,2]
[357027380,1743589832691,-500.0,0.00017226,2]
[357027381,1743589832700,-500.0,0.00017226,2]
[357027382,1743589832710,-500.0,0.00017226,2]
[357027383,1743589832719,-529.15,0.00017226,2]
[357027384,1743589832728,-500.0,0.00017226,2]
[357027385,1743589832738,-500.0,0.00017226,2]
[357027386,1743589832747,-500.0,0.00017226,2]
[357027387,1743589832756,-500.0,0.00017226,2]
[357027388,1743589832766,-500.0,0.00017226,2]
[357027389,1743589832775,-500.0,0.00017226,2]
[357027390,1743589832784,-500.0,0.00017226,2]
[357027391,1743589832794,-500.0,0.00017226,2]
[357027392,1743589832803,-551.05,0.00017226,2]
[357027393,1743589832812,-500.0,0.00017226,2]
[357027394,1743589832821,-500.0,0.00017226,2]
[357027395,1743589832830,-500.0,0.00017226,2]
[357027396,1743589832839,-500.0,0.00017226,2]
[357027397,1743589832848,-500.0,0.00017226,2]
[357027398,1743589832858,-500.0,0.00017226,2]
[357027399,1743589832867,-500.0,0.00017226,2]
[357027400,1743589832876,-500.0,0.00017226,2]
[357027401,1743589832885,-500.0,0.00017226,2]
[357027402,1743589832894,-500.0,0.00017226,2]
[357027403,1743589832903,-511.38877749,0.00017226,2]
[357027404,1743589832913,-500.0,0.00017226,2]
[357027405,1743589832922,-500.0,0.00017226,2]
[357027406,1743589832932,-642.96,0.00017226,2]
[357027407,1743589832942,-500.0,0.00017226,2]
[357027408,1743589832952,-500.0,0.00017226,2]
[357027409,1743589832962,-500.0,0.00017226,2]
[357027410,1743589832971,-500.0,0.00017226,2]
[357027411,1743589832981,-500.0,0.00017226,2]
[357027412,1743589832991,-500.0,0.00017226,2]
[357027413,1743589833000,-500.0,0.00017226,2]
[357027414,1743589833011,-500.0,0.00017226,2]
[357027415,1743589833021,-589.69,0.00017226,2]
[357027416,1743589833030,-500.0,0.00017226,2]
[357027417,1743589833040,-580.83,0.00017226,2]
[357027418,1743589833050,-500.0,0.00017226,2]
[357027419,1743589833059,-500.0,0.00017226,2]
[357027420,1743589833069,-500.0,0.00017226,2]
[357027421,1743589833080,-500.0,0.00017226,2]
[357027422,1743589833091,-500.0,0.00017226,2]
[357027423,1743589833100,-500.0,0.00017226,2]
[357027424,1743589833109,-500.0,0.00017226,2]
[357027425,1743589833119,-608.72,0.00017226,2]
[357027426,1743589833128,-524.84,0.00017226,2]
[357027427,1743589833138,-500.0,0.00017226,2]
[357027428,1743589833147,-500.0,0.00017226,2]
[357027429,1743589833157,-500.0,0.00017226,2]
[357027430,1743589833167,-754.79,0.00017226,2]
[357027431,1743589833176,-500.0,0.00017226,2]
[357027432,1743589833185,-500.0,0.00017226,2]
[357027433,1743589833196,-500.0,0.00017226,2]
[357027434,1743589833206,-500.0,0.00017226,2]
[357027435,1743589833215,-500.0,0.00017226,2]
[357027436,1743589833224,-500.0,0.00017226,2]
[357027437,1743589833234,-500.0,0.00017226,2]
[357027438,1743589833244,-554.92,0.00017226,2]
[357027439,1743589833253,-500.0,0.00017226,2]
[357027440,1743589833263,-500.0,0.00017226,2]
[357027441,1743589833272,-51.14780576,0.00017226,2]
[357027442,1743589833284,-448.85219424,0.00017226,2]
[357027443,1743589833294,-2.94303341,0.00017226,2]
[357027444,1743589833306,-497.05696659,0.00017226,2]
[357027445,1743589833315,-408.4367727,0.00017226,2]
[357027641,1743589838063,-91.5632273,0.00017226,2]
[357027642,1743589838073,-343.25047718,0.00017227,2]
[357027643,1743589838089,-694.2,0.00017227,2]
[357027644,1743589838100,-895.10319183,0.00017227,2]
[357027651,1743589840328,-616.17,0.00017225,2]
[357027652,1743589840338,-2076.95310549,0.00017227,2]
[357027673,1743589841830,-0.01158617,0.00017227,2]
[357027694,1743589843310,-500.0,0.00017225,2]
[357027695,1743589843320,-4330.6057,0.00017227,2]
[357027696,1743589843366,-13104.94740683,0.00017227,2]
[357027697,1743589843376,-500.0,0.00017498,2]
[357027698,1743589843386,-205.60880442,0.00017498,2]
[357027699,1743589843395,-399.3944862,0.00017498,2]
[357027700,1743589843404,-805.97,0.00017499,2]
[357027701,1743589843413,-312.3,0.00017499,2]
[357027702,1743589843423,-500.0,0.00017499,2]
[357027703,1743589843432,-500.0,0.00017499,2]
[357027704,1743589843442,-500.0,0.00017499,2]
[357027705,1743589843451,-291.51,0.00017499,2]
[357027706,1743589843461,-500.0,0.00017499,2]
[357027707,1743589843471,-476.9,0.00017499,2]
[357027708,1743589843480,-151.39,0.00017499,2]
[357027709,1743589843489,-441.36,0.00017499,2]
[357027710,1743589843499,-616.17,0.00017499,2]
[357027711,1743589843509,-177.65,0.000175,2]
[357027712,1743589843519,-161.55,0.000175,2]
[357027713,1743589843529,-163.79,0.000175,2]
[357027714,1743589843540,-190.1,0.000175,2]
[357027715,1743589843550,-454.38,0.000175,2]
[357027716,1743589843559,-154.77,0.000175,2]
[357027717,1743589843569,-365.6,0.000175,2]
[357027718,1743589843580,-754.79,0.000175,2]
[357027719,1743589843590,-500.0,0.000175,2]
[357027720,1743589843600,-180.38,0.000175,2]
[357027721,1743589843610,-500.0,0.000175,2]
[357027722,1743589843620,-377.28,0.000175,2]
[357027723,1743589843638,-245.92,0.000175,2]
[357027724,1743589843650,-492.41,0.000175,2]
[357027725,1743589843661,-805.97,0.00017773,2]
[357027726,1743589843671,-500.0,0.00017773,2]
[357027727,1743589843680,-500.0,0.00017773,2]
[357027728,1743589843690,-500.0,0.00017773,2]
[357027729,1743589843700,-500.0,0.00017773,2]
[357027730,1743589843710,-616.17,0.00017773,2]
[357027731,1743589843722,-754.79,0.00017774,2]
[357027732,1743589843732,-500.0,0.00017774,2]
[357027733,1743589843742,-500.0,0.00017774,2]
[357027734,1743589843753,-4349.4766417,0.00018,2]
[357027735,1743589843763,-805.97,0.00018047,2]
[357027736,1743589843774,-500.0,0.00018047,2]
[357027737,1743589843784,-500.0,0.00018047,2]
[357027738,1743589843795,-500.0,0.00018047,2]
[357027739,1743589843805,-500.0,0.00018047,2]
[357027740,1743589843816,-616.17,0.00018047,2]
[357027741,1743589843826,-754.79,0.00018048,2]
[357027742,1743589843837,-500.0,0.00018048,2]
[357027743,1743589843847,-500.0,0.00018048,2]
[357027744,1743589843856,-251.26470651,0.00018126,2]
[357027802,1743589846127,-500.0,0.00017224,2]
[357027803,1743589846137,-154.40000005,0.00018126,2]
[357027804,1743589846150,-4943.07771875,0.00018126,2]
[357027805,1743589846161,-155.0,0.00018219,2]
[357027806,1743589846170,-500.0,0.00018225,2]
[357027807,1743589846180,-500.0,0.00018225,2]
[357027808,1743589846190,-500.0,0.00018225,2]
[357027810,1743589846199,-500.0,0.00018225,2]
[357027811,1743589846209,-500.0,0.00018225,2]
[357027812,1743589846219,-500.0,0.00018225,2]
[357027813,1743589846229,-500.0,0.00018225,2]
[357027814,1743589846238,-500.0,0.00018225,2]
[357027815,1743589846248,-500.0,0.00018225,2]
[357027816,1743589846258,-500.0,0.00018225,2]
[357027817,1743589846268,-418.73084832,0.00018225,2]
[357027818,1743589846277,-500.0,0.00018225,2]
[357027819,1743589846287,-506.88369334,0.00018225,2]
[357027820,1743589846296,-500.0,0.00018225,2]
[357027821,1743589846306,-500.0,0.00018225,2]
[357027822,1743589846316,-500.0,0.00018225,2]
[357027823,1743589846326,-500.0,0.00018225,2]
[357027824,1743589846335,-500.0,0.00018225,2]
[357027825,1743589846345,-500.0,0.00018225,2]
[357027826,1743589846354,-500.0,0.00018225,2]
[357027827,1743589846363,-500.0,0.00018225,2]
[357027828,1743589846373,-500.0,0.00018225,2]
[357027829,1743589846382,-500.0,0.00018225,2]
[357027830,1743589846392,-500.0,0.00018225,2]
[357027831,1743589846401,-500.0,0.00018225,2]
[357027832,1743589846411,-502.76903704,0.00018225,2]
[357027833,1743589846420,-500.0,0.00018225,2]
[357027834,1743589846430,-533.22573824,0.00018225,2]
[357027835,1743589846439,-500.0,0.00018225,2]
[357027836,1743589846448,-500.0,0.00018225,2]
[357027837,1743589846458,-500.0,0.00018225,2]
[357027838,1743589846467,-500.0,0.00018225,2]
[357027839,1743589846476,-500.0,0.00018225,2]
[357027840,1743589846486,-500.0,0.00018225,2]
[357027841,1743589846495,-573.74,0.00018225,2]
[357027842,1743589846504,-628.85,0.00018225,2]
[357027843,1743589846514,-500.0,0.00018225,2]
[357027844,1743589846523,-500.0,0.00018225,2]
[357027845,1743589846533,-500.0,0.00018225,2]
[357027846,1743589846542,-500.0,0.00018225,2]
[357027847,1743589846551,-500.0,0.00018225,2]
[357027848,1743589846561,-500.0,0.00018225,2]
[357027849,1743589846570,-500.0,0.00018225,2]
[357027850,1743589846580,-500.0,0.00018225,2]
[357027851,1743589846590,-500.0,0.00018225,2]
[357027852,1743589846599,-508.23,0.00018225,2]
[357027853,1743589846608,-500.0,0.00018225,2]
[357027854,1743589846618,-500.0,0.00018225,2]
[357027855,1743589846627,-619.72,0.00018225,2]
[357027856,1743589846636,-547.66,0.00018225,2]
[357027857,1743589846646,-500.0,0.00018225,2]
[357027858,1743589846655,-500.0,0.00018225,2]
[357027859,1743589846664,-500.0,0.00018225,2]
[357027860,1743589846674,-500.0,0.00018225,2]
[357027861,1743589846683,-500.0,0.0001823,2]
[357027862,1743589846693,-500.0,0.0001823,2]
[357027863,1743589846702,-500.0,0.0001823,2]
[357027864,1743589846711,-500.0,0.0001823,2]
[357027865,1743589846724,-500.0,0.0001823,2]
[357027866,1743589846734,-500.0,0.0001823,2]
[357027867,1743589846744,-500.0,0.0001823,2]
[357027868,1743589846756,-500.0,0.0001823,2]
[357027869,1743589846766,-500.0,0.0001823,2]
[357027870,1743589846775,-500.0,0.0001823,2]
[357027871,1743589846785,-500.0,0.0001823,2]
[357027872,1743589846795,-500.0,0.0001823,2]
[357027873,1743589846804,-500.0,0.0001823,2]
[357027874,1743589846814,-360.04997552,0.0001823,2]
[357027875,1743589846824,-541.97,0.0001823,2]
[357027876,1743589846833,-500.0,0.0001823,2]
[357027877,1743589846842,-500.0,0.0001823,2]
[357027878,1743589846852,-500.0,0.0001823,2]
[357027879,1743589846861,-500.0,0.0001823,2]
[357027880,1743589846870,-500.0,0.0001823,2]
[357027881,1743589846880,-500.0,0.0001823,2]
[357027882,1743589846890,-500.0,0.0001823,2]
[357027883,1743589846899,-642.16222468,0.0001823,2]
[357027884,1743589847047,-553.30188395,0.0001823,2]
[357027885,1743589847058,-285.75992907,0.0001823,2]
[357027886,1743589847068,-500.0,0.0001823,2]
[357027887,1743589847081,-500.0,0.0001823,2]
[357027888,1743589847090,-500.0,0.0001823,2]
[357027889,1743589847100,-426.79877067,0.0001823,2]
[357027890,1743589847109,-500.0,0.0001823,2]
[357027891,1743589847119,-500.0,0.0001823,2]
[357027892,1743589847128,-500.0,0.0001823,2]
[357027893,1743589847137,-500.0,0.0001823,2]
[357027894,1743589847147,-500.0,0.0001823,2]
[357027895,1743589847159,-503.10589835,0.0001823,2]
[357027896,1743589847168,-545.16425911,0.0001823,2]
[357027897,1743589847177,-500.0,0.0001823,2]
[357027898,1743589847186,-500.0,0.0001823,2]
[357027899,1743589847194,-500.0,0.0001823,2]
[357027900,1743589847203,-500.0,0.0001823,2]
[357027901,1743589847212,-500.0,0.0001823,2]
[357027902,1743589847223,-500.0,0.0001823,2]
[357027903,1743589847233,-580.67,0.0001823,2]
[357027904,1743589847242,-500.0,0.0001823,2]
[357027905,1743589847251,-506.21698744,0.0001823,2]
[357027906,1743589847260,-500.0,0.0001823,2]
[357027907,1743589847269,-500.0,0.0001823,2]
[357027908,1743589847278,-500.0,0.0001823,2]
[357027909,1743589847287,-500.0,0.0001823,2]
[357027910,1743589847296,-500.0,0.0001823,2]
[357027911,1743589847309,-500.0,0.0001823,2]
[357027912,1743589847318,-500.0,0.0001823,2]
[357027913,1743589847327,-500.0,0.0001823,2]
[357027914,1743589847337,-500.0,0.0001823,2]
[357027915,1743589847346,-500.0,0.0001823,2]
[357027916,1743589847355,-500.0,0.0001823,2]
[357027917,1743589847364,-500.0,0.0001823,2]
[357027918,1743589847373,-500.0,0.0001823,2]
[357027919,1743589847383,-500.0,0.0001823,2]
[357027920,1743589847392,-500.0,0.0001823,2]
[357027921,1743589847402,-517.49595572,0.0001823,2]
[357027922,1743589847411,-500.0,0.0001823,2]
[357027923,1743589847420,-500.0,0.0001823,2]
[357027924,1743589847430,-500.98504297,0.0001823,2]
[357027925,1743589847439,-500.0,0.0001823,2]
[357027926,1743589847448,-500.0,0.0001823,2]
[357027927,1743589847458,-500.0,0.0001823,2]
[357027928,1743589847469,-580.74307389,0.0001823,2]
[357027929,1743589847479,-500.75861776,0.0001823,2]
[357027930,1743589847488,-500.0,0.0001823,2]
[357027931,1743589847497,-500.0,0.0001823,2]
[357027932,1743589847507,-500.0,0.0001823,2]
[357027933,1743589847516,-500.0,0.0001823,2]
[357027934,1743589847525,-500.0,0.0001823,2]
[357027935,1743589847534,-505.46620183,0.0001823,2]
[357027936,1743589847544,-500.0,0.0001823,2]
[357027937,1743589847553,-500.0,0.0001823,2]
[357027938,1743589847562,-500.0,0.0001823,2]
[357027939,1743589847571,-500.0,0.0001823,2]
[357027940,1743589847581,-502.7418767,0.0001823,2]
[357027941,1743589847590,-500.0,0.0001823,2]
[357027942,1743589847599,-503.79746968,0.0001823,2]
[357027943,1743589847609,-545.67487062,0.0001823,2]
[357027944,1743589847619,-500.0,0.0001823,2]
[357027945,1743589847628,-500.0,0.0001823,2]
[357027946,1743589847637,-500.0,0.0001823,2]
[357027947,1743589847647,-500.0,0.0001823,2]
[357027948,1743589847656,-500.0,0.0001823,2]
[357027949,1743589847666,-500.0,0.0001823,2]
[357027950,1743589847675,-500.0,0.0001823,2]
[357027951,1743589847685,-520.54915808,0.0001823,2]
[357027952,1743589847694,-500.0,0.0001823,2]
[357027953,1743589847703,-500.0,0.0001823,2]
[357027954,1743589847713,-500.0,0.0001823,2]
[357027955,1743589847723,-519.75570062,0.0001823,2]
[357027956,1743589847732,-500.0,0.0001823,2]
[357027957,1743589847742,-500.0,0.0001823,2]
[357027958,1743589847752,-500.0,0.0001823,2]
[357027959,1743589847763,-500.0,0.0001823,2]
[357027960,1743589847772,-500.0,0.0001823,2]
[357027961,1743589847783,-439.31253479,0.0001823,2]
[357027962,1743589847792,-500.0,0.0001823,2]
[357027963,1743589847802,-504.82,0.0001823,2]
[357027964,1743589847811,-500.0,0.0001823,2]
[357027965,1743589847820,-500.0,0.0001823,2]
[357027966,1743589847830,-500.0,0.0001823,2]
[357027967,1743589847839,-500.0,0.0001823,2]
[357027968,1743589847849,-537.46,0.0001823,2]
[357027969,1743589847858,-500.0,0.0001823,2]
[357027970,1743589847868,-500.0,0.0001823,2]
[357027971,1743589847877,-500.0,0.0001823,2]
[357027972,1743589847887,-500.0,0.0001823,2]
[357027973,1743589847896,-526.18,0.0001823,2]
[357027974,1743589847906,-500.0,0.0001823,2]
[357027975,1743589847915,-500.0,0.0001823,2]
[357027976,1743589847925,-500.0,0.0001823,2]
[357027977,1743589847934,-500.0,0.0001823,2]
[357027978,1743589847945,-500.0,0.0001823,2]
[357027979,1743589847955,-500.0,0.0001823,2]
[357027980,1743589847964,-503.04616886,0.0001823,2]
[357027981,1743589847975,-500.0,0.0001823,2]
[357027982,1743589847984,-500.0,0.0001823,2]
[357027983,1743589847994,-500.0,0.0001823,2]
[357027984,1743589848003,-500.0,0.0001823,2]
[357027985,1743589848013,-500.0,0.0001823,2]
[357027986,1743589848023,-500.0,0.0001823,2]
[357027987,1743589848033,-500.0,0.0001823,2]
[357027988,1743589848043,-587.52,0.0001823,2]
[357027989,1743589848053,-500.0,0.0001823,2]
[357027990,1743589848063,-188.45284657,0.0001823,2]
[357027991,1743589848073,-500.0,0.0001823,2]
[357027992,1743589848086,-293.43084902,0.0001823,2]
[357027993,1743589848095,-500.0,0.0001823,2]
[357027994,1743589848106,-500.0,0.0001823,2]
[357027995,1743589848115,-500.0,0.0001823,2]
[357027996,1743589848124,-624.78,0.0001823,2]
[357027997,1743589848134,-541.8076993,0.0001823,2]
[357027998,1743589848144,-533.55593265,0.0001823,2]
[357027999,1743589848154,-500.0,0.0001823,2]
[357028000,1743589848165,-500.0,0.0001823,2]
[357028001,1743589848174,-500.0,0.0001823,2]
[357028002,1743589848183,-500.0,0.0001823,2]
[357028003,1743589848193,-555.77455561,0.0001823,2]
[357028004,1743589848202,-500.0,0.0001823,2]
[357028005,1743589848211,-500.0,0.0001823,2]
[357028006,1743589848221,-500.0,0.0001823,2]
[357028007,1743589848230,-500.0,0.0001823,2]
[357028008,1743589848240,-500.0,0.0001823,2]
[357028009,1743589848250,-500.0,0.0001823,2]
[357028010,1743589848259,-500.0,0.0001823,2]
[357028011,1743589848268,-500.0,0.0001823,2]
[357028012,1743589848278,-500.0,0.0001823,2]
[357028013,1743589848288,-500.0,0.0001823,2]
[357028014,1743589848298,-500.0,0.0001823,2]
[357028015,1743589848308,-500.0,0.0001823,2]
[357028016,1743589848318,-535.07565475,0.0001823,2]
[357028017,1743589848327,-500.0,0.0001823,2]
[357028018,1743589848337,-500.0,0.0001823,2]
[357028019,1743589848347,-500.0,0.0001823,2]
[357028020,1743589848356,-500.0,0.0001823,2]
[357028021,1743589848366,-500.0,0.0001823,2]
[357028022,1743589848376,-561.66,0.0001823,2]
[357028024,1743589848386,-500.0,0.0001823,2]
[357028025,1743589848395,-508.30926685,0.0001823,2]
[357028026,1743589848405,-500.0,0.0001823,2]
[357028027,1743589848415,-500.0,0.0001823,2]
[357028028,1743589848424,-501.31843342,0.0001823,2]
[357028029,1743589848433,-500.0,0.0001823,2]
[357028030,1743589848443,-529.2,0.0001823,2]
[357028031,1743589848453,-500.0,0.0001823,2]
[357028032,1743589848463,-500.0,0.0001823,2]
[357028033,1743589848475,-500.0,0.0001823,2]
[357028034,1743589848484,-1000.0,0.0001823,2]
[357028035,1743589848493,-500.0,0.0001823,2]
[357028036,1743589848503,-537.66001482,0.0001823,2]
[357028037,1743589848513,-500.0,0.0001823,2]
[357028038,1743589848523,-500.0,0.0001823,2]
[357028039,1743589848533,-500.0,0.0001823,2]
[357028040,1743589848542,-500.0,0.0001823,2]
[357028041,1743589848552,-500.0,0.0001823,2]
[357028042,1743589848562,-500.0,0.0001823,2]
[357028043,1743589848572,-500.0,0.0001823,2]
[357028044,1743589848582,-500.0,0.0001823,2]
[357028045,1743589848593,-500.0,0.0001823,2]
[357028046,1743589848603,-500.0,0.0001823,2]
[357028047,1743589848613,-500.0,0.0001823,2]
[357028048,1743589848622,-500.0,0.0001823,2]
[357028049,1743589848632,-500.0,0.0001823,2]
[357028050,1743589848642,-500.0,0.0001823,2]
[357028051,1743589848652,-500.0,0.0001823,2]
[357028052,1743589848662,-500.0,0.0001823,2]
[357028053,1743589848683,-500.0,0.0001823,2]
[357028054,1743589848694,-510.37,0.0001823,2]
[357028055,1743589848705,-500.0,0.0001823,2]
[357028056,1743589848715,-500.0,0.0001823,2]
[357028057,1743589848728,-500.0,0.0001823,2]
[357028058,1743589848738,-500.0,0.0001823,2]
[357028059,1743589848749,-500.0,0.0001823,2]
[357028060,1743589848760,-500.0,0.0001823,2]
[357028061,1743589848770,-500.0,0.0001823,2]
[357028062,1743589848780,-500.0,0.0001823,2]
[357028063,1743589848790,-500.0,0.0001823,2]
[357028064,1743589848800,-500.0,0.0001823,2]
[357028065,1743589848811,-500.0,0.0001823,2]
[357028066,1743589848822,-500.0,0.0001823,2]
[357028067,1743589848833,-500.0,0.0001823,2]
[357028068,1743589848843,-500.0,0.0001823,2]
[357028069,1743589848854,-636.41162576,0.0001823,2]
[357028070,1743589848865,-500.0,0.0001823,2]
[357028071,1743589848876,-544.60229462,0.00018231,2]
[357028072,1743589848886,-500.0,0.00018231,2]
[357028073,1743589848896,-500.0,0.00018231,2]
[357028074,1743589848906,-503.52485827,0.00018231,2]
[357028075,1743589848916,-503.64014482,0.00018231,2]
[357028076,1743589848926,-501.81720383,0.00018231,2]
[357028077,1743589848936,-500.0,0.00018231,2]
[357028078,1743589848946,-517.0907649,0.00018231,2]
[357028079,1743589848956,-502.97515352,0.00018231,2]
[357028080,1743589848966,-500.0,0.00018231,2]
[357028081,1743589848976,-500.0,0.00018231,2]
[357028082,1743589848986,-503.97263541,0.00018231,2]
[357028083,1743589848996,-500.0,0.00018231,2]
[357028084,1743589849007,-500.0,0.00018231,2]
[357028085,1743589849018,-500.0,0.00018231,2]
[357028086,1743589849028,-500.0,0.00018231,2]
[357028087,1743589849038,-500.0,0.00018231,2]
[357028088,1743589849048,-386.13052363,0.00018231,2]
[357028089,1743589849166,-113.86947637,0.00018231,2]
[357028090,1743589849176,-500.0,0.00018231,2]
[357028091,1743589849187,-500.0,0.00018231,2]
[357028092,1743589849196,-88.03346257,0.00018231,2]
[357028108,1743590422869,177.923872,0.00013699,2]
[357028159,1743591038188,-2080.17326206,0.00016345,2]
[357028160,1743591038198,-300.0,0.00016442,2]
[357028161,1743591038208,-33683.16651131,0.00016444,2]
[357028163,1743591038240,-812.55,0.00016444,2]
[357028164,1743591038297,-1779.40258563,0.00016444,2]
[357028179,1743591043279,-7256.19477621,0.00016444,2]
[357028180,1743591043289,-500.0,0.00016444,2]
[357028181,1743591043298,-500.0,0.00016444,2]
[357028182,1743591043307,-500.0,0.00016444,2]
[357028183,1743591043317,-257.05233237,0.00016444,2]
[357028184,1743591043326,-500.0,0.00016444,2]
[357028185,1743591043336,-500.0,0.00016444,2]
[357028186,1743591043345,-500.0,0.00016444,2]
[357028187,1743591043354,-620.0,0.00016444,2]
[357028188,1743591043363,-620.0,0.00016444,2]
[357028189,1743591043373,-500.0,0.00016444,2]
[357028190,1743591043382,-500.0,0.00016444,2]
[357028191,1743591043391,-500.0,0.00016444,2]
[357028192,1743591043400,-500.0,0.00016444,2]
[357028193,1743591043410,-500.0,0.00016444,2]
[357028194,1743591043419,-628.99,0.00016445,2]
[357028195,1743591043429,-671.64,0.00016445,2]
[357028196,1743591043438,-500.0,0.00016445,2]
[357028197,1743591043447,-500.0,0.00016445,2]
[357028198,1743591043458,-500.0,0.00016445,2]
[357028199,1743591043471,-500.0,0.00016445,2]
[357028200,1743591043480,-500.0,0.00016445,2]
[357028201,1743591043490,-500.0,0.00016445,2]
[357028202,1743591043499,-500.0,0.00016445,2]
[357028203,1743591043509,-500.0,0.00016445,2]
[357028204,1743591043518,-500.0,0.00016445,2]
[357028205,1743591043528,-500.0,0.00016445,2]
[357028206,1743591043537,-532.67,0.00016445,2]
[357028207,1743591043549,-500.0,0.00016445,2]
[357028208,1743591043559,-24451.01427813,0.00016445,2]
[357028225,1743591046297,-297.98572187,0.00016445,2]
[357028226,1743591046307,-5361.1740578,0.00016498,2]
[357028227,1743591046316,-495.70504714,0.000165,2]
[357028228,1743591046326,-291.8658686,0.00016629,2]
[357028229,1743591046336,-628.99,0.00016719,2]
[357028230,1743591046346,-671.64,0.00016719,2]
[357028231,1743591046359,-500.0,0.00016719,2]
[357028232,1743591046368,-500.0,0.00016719,2]
[357028233,1743591046378,-500.0,0.00016719,2]
[357028234,1743591046387,-500.0,0.00016719,2]
[357028236,1743591046397,-156.18,0.00016719,2]
[357028238,1743591046407,-588.2,0.00016719,2]
[357028239,1743591046416,-211.87,0.00016719,2]
[357028240,1743591046426,-532.67,0.00016719,2]
[357028241,1743591046435,-1110.33954156,0.00016893,2]
[357028242,1743591046445,-628.99,0.00016993,2]
[357028243,1743591046454,-671.64,0.00016993,2]
[357028244,1743591046465,-500.0,0.00016993,2]
[357028245,1743591046480,-500.0,0.00016993,2]
[357028246,1743591046490,-500.0,0.00016993,2]
[357028247,1743591046500,-500.0,0.00016993,2]
[357028248,1743591046509,-532.67,0.00016993,2]
[357028249,1743591046519,-628.99,0.00017267,2]
[357028250,1743591046528,-671.64,0.00017267,2]
[357028251,1743591046539,-500.0,0.00017267,2]
[357028252,1743591046549,-500.0,0.00017267,2]